bitfinex/quotes_BTCUSD_20250723
["timestamp","ask_amount","ask_price","bid_price","bid_amount"]
[1753303804611,0.99597746,118000.0,117990.0,0.00304923]
[1753303805069,0.99597746,118000.0,117990.0,0.00204923]
[1753303805298,0.99697746,118000.0,117990.0,4.923e-05]
[1753303806388,1.42583623,118000.0,117990.0,4.923e-05]
[1753303808055,1.52583623,118000.0,117990.0,4.923e-05]
[1753303809053,1.52483623,118000.0,117990.0,4.923e-05]
[1753303809792,1.53083623,118000.0,117990.0,4.923e-05]
[1753303810032,0.95601746,118000.0,117990.0,4.923e-05]
[1753303810283,1.52787623,118000.0,117990.0,4.923e-05]
[1753303810830,1.57584623,118000.0,117990.0,4.923e-05]
[1753303811060,1.953735,118000.0,117990.0,4.923e-05]
[1753303811291,0.57617735,117970.0,117960.0,0.0004]
[1753303811532,0.57617735,117970.0,117960.0,0.00044923]
[1753303811533,0.80577465,117970.0,117960.0,0.00044923]
[1753303811816,0.66578465,117970.0,117960.0,0.17847552]
[1753303812064,0.88600828,117970.0,117960.0,0.00044923]
[1753303812306,0.94910828,117970.0,117960.0,0.00044923]
[1753303813204,0.95010828,117970.0,117960.0,0.00044923]
[1753303816233,0.80010828,117970.0,117960.0,0.00044923]
[1753303816679,0.80010828,117970.0,117960.0,0.16999822]
[1753303816891,0.73700828,117970.0,117960.0,0.00044923]
[1753303817106,0.18486593,117970.0,117960.0,0.26517723]
[1753303817333,0.65889321,117970.0,117960.0,0.8126633]
[1753303817555,0.30194076,117970.0,117960.0,0.8455633]
[1753303817771,0.30941698,117970.0,117960.0,0.33222723]
[1753303818032,0.34381902,117970.0,117960.0,0.33222723]
[1753303818246,0.33534237,117970.0,117960.0,0.33222723]
[1753303818468,0.326866,117970.0,117960.0,0.33222723]
[1753303818902,0.34381895,117970.0,117960.0,0.33222723]
[1753303819114,0.32686593,117970.0,117960.0,0.33322723]
[1753303819355,0.3353423,117970.0,117960.0,0.33322723]
[1753303819555,0.17538978,117970.0,117960.0,0.764086]
[1753303819776,0.33534216,117970.0,117960.0,0.764086]
[1753303819993,0.73534216,117970.0,117960.0,0.764086]
[1753303820206,0.75229518,117970.0,117960.0,0.26759969]
[1753303820420,0.9218298,117970.0,117960.0,0.20054976]
[1753303820639,0.91547415,117970.0,117960.0,0.18359559]
[1753303820861,0.91547415,117970.0,117960.0,0.18407282]
[1753303821074,0.18596698,117960.0,117950.0,0.24901733]
[1753303821296,0.18596698,117960.0,117950.0,0.18666513]
[1753303821297,0.351546,117960.0,117950.0,0.18666513]
[1753303821513,0.351546,117960.0,117950.0,0.19514322]
[1753303821753,0.02538978,117960.0,117950.0,0.70707753]
[1753303821990,0.15094076,117960.0,117950.0,0.82373012]
[1753303822196,0.15094076,117960.0,117950.0,0.82573012]
[1753303822621,0.1525446,117960.0,117950.0,0.79875483]
[1753303823074,0.00794076,117960.0,117950.0,0.79875483]
[1753303823498,0.40794076,117970.0,117960.0,0.25768046]
[1753303823765,0.40794076,117970.0,117960.0,0.69085923]
[1753303823978,0.55090076,117970.0,117960.0,0.69085923]
[1753303824409,0.40794076,117970.0,117960.0,0.77533653]
[1753303825683,0.40794076,117970.0,117960.0,0.34647776]
[1753303825932,0.40794076,117970.0,117960.0,0.91829653]
[1753303826143,0.40794076,117970.0,117960.0,0.92129653]
[1753303826771,0.40794076,117970.0,117960.0,0.92329653]
[1753303830733,0.40794076,117970.0,117960.0,0.92109653]
[1753303831160,0.40794076,117970.0,117960.0,0.49223776]
[1753303831384,0.55933691,117970.0,117960.0,0.28657776]
[1753303831621,0.55086076,117970.0,117960.0,0.31817776]
[1753303832030,0.55086076,117970.0,117960.0,0.74703653]
[1753303832454,0.5762895,117970.0,117960.0,0.74703653]
[1753303832668,0.5762895,117970.0,117960.0,0.71543653]
[1753303833079,0.75095412,117970.0,117960.0,0.19362352]
[1753303833353,0.76790736,117970.0,117960.0,0.20845755]
[1753303833556,0.76790721,117970.0,117960.0,0.20845755]
[1753303833768,0.76790829,117970.0,117960.0,0.20845755]
[1753303833980,0.45545367,117970.0,117960.0,0.63531632]
[1753303834187,0.55086076,117970.0,117960.0,0.85527116]
[1753303834406,0.00794076,117970.0,117960.0,0.93974846]
[1753303834632,0.31991362,117990.0,117980.0,0.19494742]
[1753303834831,0.31830978,117990.0,117980.0,0.62585619]
[1753303835469,0.40794076,117990.0,117980.0,0.19699742]
[1753303835683,0.16104076,118010.0,118000.0,0.19491437]
[1753303835928,0.3075146,118010.0,118000.0,0.62582314]
[1753303836141,0.57146397,118010.0,118000.0,0.62377314]
[1753303836353,0.74030641,118010.0,118000.0,0.19491437]
[1753303836567,0.71438397,118010.0,118000.0,0.19491437]
[1753303836786,0.73183299,118010.0,118000.0,0.19491437]
[1753303836996,0.74030641,118010.0,118000.0,0.19491437]
[1753303837226,0.73183299,118010.0,118000.0,0.19491437]
[1753303837660,0.72335978,118010.0,118000.0,0.19491437]
[1753303837892,0.2246994,118030.0,118000.0,1.23708675]
[1753303838100,0.1531,118030.0,118020.0,0.62374011]
[1753303838320,0.0306,118050.0,118040.0,0.19484833]
[1753303838321,0.20858193,118050.0,118040.0,0.19484833]
[1753303838539,0.73984004,118050.0,118040.0,0.19484833]
[1753303838752,0.78228512,118050.0,118040.0,0.19484833]
[1753303838960,0.96017619,118050.0,118040.0,0.18637728]
[1753303839212,0.00847256,118020.0,118010.0,0.18641142]
[1753303839429,0.20380609,118030.0,118020.0,0.20335419]
[1753303839635,0.33716382,118030.0,118020.0,0.20335419]
[1753303839893,0.35410844,118030.0,118020.0,0.20335419]
[1753303840134,0.72331978,118030.0,118020.0,0.20335419]
[1753303840552,0.58043978,118030.0,118020.0,0.20335419]
[1753303840764,0.73179169,118030.0,118020.0,0.20335419]
[1753303840983,0.74026382,118030.0,118020.0,0.20335419]
[1753303841236,0.74026382,118030.0,118010.0,0.61527019]
[1753303841237,0.01694541,118020.0,118010.0,0.61527019]
[1753303841461,0.00355384,118020.0,118010.0,0.62374397]
[1753303841681,0.00665384,118020.0,118010.0,0.62374397]
[1753303841901,0.00665384,118020.0,118010.0,0.18641185]
[1753303841902,0.21845176,118020.0,118010.0,0.18641185]
[1753303842114,0.06433117,118020.0,118010.0,0.19488527]
[1753303842329,0.05746195,118020.0,118010.0,0.20335862]
[1753303842771,0.06593501,118020.0,118010.0,0.20335862]
[1753303843022,0.23539839,118020.0,118010.0,0.18641185]
[1753303843245,0.00847342,118010.0,118000.0,0.16949152]
[1753303843467,0.16173663,118010.0,118000.0,0.19491423]
[1753303843686,0.26927347,118010.0,118000.0,0.19491423]
[1753303843927,0.23917347,118010.0,118000.0,0.19491423]
[1753303844146,0.20717347,118010.0,118000.0,0.19491423]
[1753303844410,0.18175299,118010.0,118000.0,0.19491423]
[1753303844643,0.18175299,118010.0,118000.0,0.623773]
[1753303844863,0.17327978,118010.0,118000.0,0.623773]
[1753303845086,0.17327978,118010.0,118000.0,0.19491423]
[1753303845310,0.18175299,118010.0,118000.0,0.623773]
[1753303845749,0.17327978,118010.0,118000.0,0.623773]
[1753303845976,0.19869998,118010.0,118000.0,0.623773]
[1753303846242,0.18175299,118010.0,118000.0,0.623773]
[1753303846429,0.19022641,118010.0,118000.0,0.623773]
[1753303846880,0.19022641,118010.0,117980.0,0.19494705]
[1753303846881,0.0164154,117990.0,117980.0,0.19494705]
[1753303847108,0.1828191,117990.0,117980.0,0.20357079]
[1753303847332,0.1642654,117990.0,117980.0,0.20357079]
[1753303847579,0.17434439,117990.0,117980.0,0.20357079]
[1753303847799,0.16426547,117990.0,117980.0,0.63242956]
[1753303848014,0.16586931,117990.0,117980.0,0.63242956]
[1753303848242,0.1573946,117990.0,117980.0,0.63242956]
[1753303848453,0.16586931,117990.0,117980.0,0.63242956]
[1753303848662,0.1573946,117990.0,117980.0,0.63242956]
[1753303849092,0.1573946,117990.0,117980.0,0.63547956]
[1753303849516,0.1542946,117990.0,117980.0,0.63547956]
[1753303849737,0.00794076,117990.0,117980.0,0.8524844]
[1753303849964,0.00794076,117990.0,117980.0,0.9369617]
[1753303850642,0.0164154,117990.0,117980.0,0.78485686]
[1753303850836,0.0164154,117990.0,117980.0,0.92545686]
[1753303851055,0.02649424,117990.0,117980.0,0.77827956]
[1753303851265,0.01996931,117990.0,117980.0,0.77827956]
[1753303851500,0.01801931,117990.0,117980.0,0.77827956]
[1753303851863,0.0095446,117990.0,117980.0,0.77827956]
[1753303852097,0.01801931,117990.0,117980.0,0.77827956]
[1753303852502,0.04001939,117990.0,117980.0,0.20662087]
[1753303852896,0.23544959,117990.0,117980.0,0.19609536]
[1753303853109,0.05586457,117990.0,117980.0,0.21304645]
[1753303853323,0.06594363,117990.0,117980.0,0.21304645]
[1753303853780,0.05746841,117990.0,117980.0,0.21304645]
[1753303853999,0.03204362,117990.0,117980.0,0.21304645]
[1753303854473,0.04051833,117990.0,117980.0,0.21304645]
[1753303854699,0.03204362,117990.0,117980.0,0.21304645]
[1753303855160,0.02699362,117990.0,117980.0,0.64395522]
[1753303855406,0.31818978,118000.0,117990.0,0.1949309]
[1753303855623,0.70074076,118000.0,117990.0,0.62583967]
[1753303855840,0.70074076,118000.0,117990.0,0.80039967]
[1753303856063,0.40794076,118000.0,117990.0,0.88773481]
[1753303856292,0.00794076,118000.0,117990.0,0.91887697]
[1753303857218,0.00994076,118000.0,117990.0,0.91887697]
[1753303857435,0.00794076,118000.0,117990.0,0.91887697]
[1753303857661,0.00794076,118000.0,117990.0,0.91987697]
[1753303858774,0.00794076,118000.0,117990.0,1.00320478]
[1753303859232,0.00794076,118000.0,117990.0,0.91987697]
[1753303859463,0.00794076,118000.0,117990.0,0.92187697]
[1753303860120,0.00794076,118000.0,117990.0,0.85603697]
[1753303860806,0.40794076,118000.0,117990.0,0.85603697]
[1753303861478,0.40794076,118000.0,117990.0,0.88743697]
[1753303861705,0.40794076,118000.0,117990.0,1.00321427]
[1753303861938,0.40794076,118000.0,117990.0,1.00541427]
[1753303862157,0.40794076,118000.0,117990.0,0.92093697]
[1753303862853,0.00794076,118000.0,117990.0,0.92093697]
[1753303863818,0.40794076,118010.0,118000.0,0.22791437]
[1753303864063,0.40794076,118010.0,118000.0,0.69121314]
[1753303864325,0.40794076,118010.0,118000.0,0.77569044]
[1753303864559,0.40794076,118010.0,118000.0,0.34903167]
[1753303864823,0.40794076,118010.0,118000.0,0.77789044]
[1753303865070,0.40794076,118010.0,118000.0,0.77569044]
[1753303867361,0.00794076,118010.0,118000.0,0.77569044]
[1753303870154,0.00794076,118010.0,118000.0,0.77789044]
[1753303871042,0.00794076,118010.0,118000.0,1.00496774]
[1753303872205,0.4,118020.0,118010.0,0.19489786]
[1753303872465,0.49942,118040.0,118010.0,0.91697393]
[1753303872678,0.00794076,118020.0,118010.0,0.33704138]
[1753303872921,0.00794076,118020.0,118010.0,0.47960138]
[1753303873684,0.00794076,118020.0,118010.0,0.47740138]
[1753303873941,0.00794076,118020.0,118010.0,0.87486015]
[1753303874192,0.0148646,118020.0,118010.0,0.84232015]
[1753303874438,0.01326076,118020.0,118010.0,0.84232015]
[1753303875142,0.07676076,118020.0,118010.0,0.61528285]
[1753303875613,0.07676076,118020.0,118010.0,0.18642408]
[1753303876125,0.44008368,118020.0,118010.0,0.1779508]
[1753303876368,0.43161112,118020.0,118010.0,0.18642479]
[1753303876629,0.08001468,118000.0,117990.0,0.17798075]
[1753303876876,0.92860249,118000.0,117990.0,0.17798118]
[1753303877107,0.92174451,118000.0,117990.0,0.1869314]
[1753303877375,0.9132703,118000.0,117990.0,0.16998118]
[1753303877880,0.09746485,117990.0,117980.0,0.18661928]
[1753303878098,0.10964384,117990.0,117980.0,0.19509522]
[1753303878371,0.11286384,117990.0,117980.0,0.19509522]
[1753303878859,0.10438855,117990.0,117980.0,0.19509522]
[1753303879359,0.11286362,117990.0,117980.0,0.19509522]
[1753303879656,0.09591362,117990.0,117980.0,0.19509522]
[1753303879907,0.10438841,117990.0,117980.0,0.19509522]
[1753303880112,0.09591362,117990.0,117980.0,0.19509522]
[1753303880317,0.10438833,117990.0,117980.0,0.19509522]
[1753303880533,0.09591362,117990.0,117980.0,0.19509522]
[1753303881215,0.11286305,117990.0,117980.0,0.19509522]
[1753303881442,0.09591362,117990.0,117980.0,0.62395399]
[1753303881647,0.17479362,117990.0,117980.0,0.62395399]
[1753303881855,0.17318978,117990.0,117980.0,0.62609399]
[1753303882755,0.17518978,117990.0,117980.0,0.19723522]
[1753303882978,0.18266449,117990.0,117980.0,0.62395399]
[1753303883413,0.17418978,117990.0,117980.0,0.62395399]
[1753303883653,0.18166449,117990.0,117980.0,0.62395399]
[1753303884122,0.17318978,117990.0,117980.0,0.62395399]
[1753303884341,0.18166457,117990.0,117980.0,0.62395399]
[1753303884546,0.03070978,117990.0,117980.0,0.19509522]
[1753303884761,0.03231362,117990.0,117980.0,0.19509522]
[1753303885042,0.04078833,117990.0,117980.0,0.19509522]
[1753303885275,0.11406319,117990.0,117980.0,0.19509522]
[1753303885477,0.11406312,117990.0,117980.0,0.19281522]
[1753303885699,0.13101305,117990.0,117980.0,0.19281522]
[1753303885905,0.13101298,117990.0,117980.0,0.19281522]
[1753303886342,0.12253798,117990.0,117980.0,0.19281522]
[1753303886573,0.13101298,117990.0,117980.0,0.19281522]
[1753303886798,0.28356966,117990.0,117980.0,0.16966805]
[1753303887014,0.28196582,117990.0,117980.0,0.18661992]
[1753303887240,0.60501567,117990.0,117980.0,0.0001478]
[1753303887469,0.68949297,117990.0,117980.0,0.0001478]
[1753303887893,0.69049297,117990.0,117980.0,0.0001478]
[1753303888338,0.69049297,117990.0,117980.0,0.17814406]
[1753303888565,0.69049297,117990.0,117980.0,0.0001478]
[1753303888805,0.69349297,117990.0,117980.0,0.0001478]
[1753303889496,0.69349297,117990.0,117980.0,0.17814406]
[1753303889724,0.69349297,117990.0,117980.0,0.0001478]
[1753303891039,0.69349297,117990.0,117980.0,0.16966805]
[1753303891274,0.69349297,117990.0,117980.0,0.17814391]
[1753303891495,0.69349297,117990.0,117980.0,0.18661956]
[1753303891700,0.71044333,117990.0,117980.0,0.0001478]
[1753303893088,0.71044333,117990.0,117980.0,0.17814399]
[1753303893297,0.71044333,117990.0,117980.0,0.1950955]
[1753303893557,0.71044333,117990.0,117980.0,0.19509557]
[1753303893808,0.71044333,117990.0,117980.0,0.18661985]
[1753303894311,0.53246194,117990.0,117980.0,0.20357108]
[1753303894543,0.54941165,117990.0,117980.0,0.20357108]
[1753303894781,0.53246172,117990.0,117980.0,0.20357108]
[1753303895020,0.46493435,117990.0,117980.0,0.20357108]
[1753303895497,0.46493428,117990.0,117980.0,0.20357108]
[1753303895735,0.47340943,117990.0,117980.0,0.20357108]
[1753303895953,0.46493428,117990.0,117980.0,0.20357108]
[1753303896406,0.47340943,117990.0,117980.0,0.20357108]
[1753303897500,0.64291532,117990.0,117980.0,0.20357108]
[1753303897762,0.65139054,117990.0,117980.0,0.20357108]
[1753303897988,0.65139119,117990.0,117980.0,0.20357108]
[1753303898431,0.71044348,117990.0,117980.0,0.0001478]
[1753303901873,0.85268348,117990.0,117980.0,0.16966805]
[1753303902137,0.85268348,117990.0,117980.0,0.0001478]
[1753303902622,0.57437609,117990.0,117980.0,0.62395399]
[1753303902855,0.50957609,117990.0,117980.0,0.62395399]
[1753303903086,0.52702511,117990.0,117980.0,0.62395399]
[1753303903323,0.5354599,117990.0,117980.0,0.62395399]
[1753303903554,0.55240998,117990.0,117980.0,0.19509522]
[1753303903830,0.61530998,117990.0,117980.0,0.19509522]
[1753303904065,0.6153099,117990.0,117980.0,0.19509522]
[1753303904795,0.60683483,117990.0,117980.0,0.19509522]
[1753303905047,0.61530998,117990.0,117980.0,0.19509522]
[1753303905549,0.6237852,117990.0,117980.0,0.19509522]
[1753303906848,0.61530998,117990.0,117980.0,0.19509522]
[1753303907140,0.5354599,117990.0,117980.0,0.19509522]
[1753303907407,0.52698511,117990.0,117980.0,0.62395399]
[1753303907666,0.15570145,117990.0,117980.0,0.74014382]
[1753303907906,0.15570145,117990.0,117980.0,0.69063399]
[1753303908150,0.14776069,117990.0,117980.0,0.69063399]
[1753303908394,0.01354145,117990.0,117980.0,0.69063399]
[1753303908894,0.00560069,117990.0,117980.0,0.69063399]
[1753303909154,0.01054145,117990.0,117980.0,0.77511129]
[1753303909400,0.01054145,117990.0,117980.0,0.85958859]
[1753303909646,0.01054145,117990.0,117980.0,0.77511129]
[1753303909892,0.00954145,117990.0,117980.0,0.77511129]
[1753303911709,0.00954145,117990.0,117980.0,0.91723129]
[1753303913552,0.00954145,117990.0,117980.0,0.77291129]
[1753303913830,0.15162145,117990.0,117980.0,0.71041129]
[1753303914094,0.15674145,117990.0,117980.0,0.71041129]
[1753303914385,0.15162145,117990.0,117980.0,0.77751129]
[1753303915141,0.15162145,117990.0,117980.0,0.77531129]
[1753303918251,0.15162145,117990.0,117980.0,0.77751129]
[1753303918475,0.00160069,117990.0,117980.0,0.86198859]
[1753303918686,0.00160069,117990.0,117980.0,0.77751129]
[1753303918687,0.00954145,117990.0,117980.0,0.77751129]
[1753303919874,0.00160069,117990.0,117980.0,0.77751129]
[1753303920334,0.00954145,117990.0,117980.0,0.77751129]
[1753303921258,0.00160069,117990.0,117980.0,0.77851129]
[1753303921472,0.40794076,118000.0,117990.0,0.2588309]
[1753303921707,0.4,118000.0,117990.0,1.34290574]
[1753303921980,0.00794076,118010.0,118000.0,0.25881437]
[1753303922211,0.14982076,118020.0,118010.0,0.25609786]
[1753303922436,0.00794076,118020.0,118010.0,0.77141393]
[1753303922693,0.00794076,118020.0,118010.0,0.99997123]
[1753303922927,0.40794076,118020.0,118010.0,0.99997123]
[1753303923468,0.4,118020.0,118010.0,0.99997123]
[1753303923604,0.00794076,118020.0,118010.0,0.99997123]
[1753303923837,0.63932902,118040.0,118030.0,0.19486483]
[1753303924046,0.64726978,118040.0,118030.0,0.66390962]
[1753303924532,0.65574083,118040.0,118030.0,0.23505085]
[1753303924761,0.68623478,118040.0,118030.0,0.23505085]
[1753303925029,0.72670641,118040.0,118030.0,0.62372375]
[1753303925271,0.72875551,118040.0,118030.0,0.63219566]
[1753303925505,0.72875551,118040.0,118030.0,0.20333689]
[1753303925969,0.73275551,118040.0,118030.0,0.20333689]
[1753303926213,0.92531912,118040.0,118030.0,0.19486512]
[1753303926435,0.92531912,118040.0,118030.0,0.20333718]
[1753303926883,0.92531912,118040.0,118030.0,0.21180909]
[1753303927113,0.92531912,118040.0,118030.0,0.19486512]
[1753303927361,0.92531912,118040.0,118030.0,0.20333718]
[1753303928027,0.92531912,118040.0,118030.0,0.21180917]
[1753303928284,0.92531912,118040.0,118030.0,0.21180873]
[1753303928534,0.74741333,118040.0,118030.0,0.21180873]
[1753303928756,0.73894177,118040.0,118030.0,0.21180873]
[1753303928999,0.73894142,118040.0,118030.0,0.21180873]
[1753303929237,0.66687008,118040.0,118030.0,0.21180873]
[1753303929465,0.65839895,118040.0,118030.0,0.21180873]
[1753303929720,0.65839895,118040.0,118030.0,0.6427275]
[1753303930411,0.31839895,118040.0,118030.0,0.6427275]
[1753303930871,0.71839895,118040.0,118030.0,0.6427275]
[1753303931383,0.75228425,118040.0,118030.0,0.21180873]
[1753303931607,0.73134128,118040.0,118030.0,0.6406675]
[1753303932055,0.73434128,118040.0,118030.0,0.6406675]
[1753303932962,0.75128418,118040.0,118030.0,0.6406675]
[1753303933176,0.74928418,118040.0,118030.0,0.6406675]
[1753303933397,0.73234128,118040.0,118030.0,0.6406675]
[1753303933642,0.71639895,118040.0,118030.0,0.6406675]
[1753303933868,0.71639895,118040.0,118030.0,0.7272048]
[1753303934087,0.71639895,118040.0,118030.0,0.6427275]
[1753303934538,0.73334156,118040.0,118030.0,0.21180873]
[1753303934760,0.73334156,118040.0,118030.0,0.6406675]
[1753303934980,0.76524156,118040.0,118030.0,0.6406675]
[1753303935469,0.78717015,118040.0,118030.0,0.21180873]
[1753303935914,0.78717008,118040.0,118030.0,0.21180873]
[1753303936166,0.73334135,118040.0,118030.0,0.21180873]
[1753303936406,0.72487015,118040.0,118030.0,0.6406675]
[1753303936632,0.71639895,118040.0,118030.0,0.6406675]
[1753303936854,0.72487,118040.0,118030.0,0.6406675]
[1753303937073,0.71639895,118040.0,118030.0,0.6406675]
[1753303938002,0.71639895,118040.0,118030.0,0.6427275]
[1753303938227,0.79714142,118040.0,118030.0,0.6406675]
[1753303938442,0.78867008,118040.0,118030.0,0.6406675]
[1753303938670,0.78019895,118040.0,118030.0,0.21180873]
[1753303938943,0.75677,118040.0,118030.0,0.21180873]
[1753303939169,0.74829895,118040.0,118030.0,0.21180873]
[1753303939397,0.71639895,118040.0,118030.0,0.21180873]
[1753303939618,0.71639895,118040.0,118030.0,0.6406675]
[1753303940955,0.73334142,118040.0,118030.0,0.21180873]
[1753303941173,0.79624135,118040.0,118030.0,0.6406675]
[1753303941394,0.79624128,118040.0,118030.0,0.6406675]
[1753303942039,0.80471262,118040.0,118030.0,0.6406675]
[1753303942262,0.40471262,118040.0,118030.0,0.6406675]
[1753303943018,0.40471262,118040.0,118030.0,0.21180873]
[1753303943257,0.40471262,118040.0,118030.0,0.65067834]
[1753303943742,0.37929895,118040.0,118030.0,0.65067834]
[1753303944218,0.38777008,118040.0,118030.0,0.65067834]
[1753303944426,0.40471269,118040.0,118030.0,0.21180873]
[1753303944657,0.39624128,118040.0,118030.0,0.65067834]
[1753303945143,0.38777008,118040.0,118030.0,0.65067834]
[1753303945579,0.37929895,118040.0,118030.0,0.65067834]
[1753303946320,0.73261854,118040.0,118030.0,0.19486483]
[1753303946538,0.73261854,118040.0,118030.0,0.63373444]
[1753303946973,0.72414749,118040.0,118030.0,0.63373444]
[1753303947418,0.5462417,118040.0,118030.0,0.64220635]
[1753303947637,0.53777,118040.0,118030.0,0.64220635]
[1753303948289,0.56318395,118040.0,118030.0,0.64220635]
[1753303948513,0.55471247,118040.0,118030.0,0.64220635]
[1753303948738,0.54624113,118040.0,118030.0,0.64220635]
[1753303948970,0.46639895,118040.0,118030.0,0.64426635]
[1753303949188,0.45337819,118040.0,118030.0,0.72563799]
[1753303949410,0.31131895,118040.0,118030.0,0.67486635]
[1753303949642,0.31131895,118040.0,118030.0,0.64426635]
[1753303949876,0.32487008,118040.0,118030.0,0.64426635]
[1753303950111,0.32487008,118040.0,118030.0,0.64220635]
[1753303950320,0.33334135,118040.0,118030.0,0.64220635]
[1753303950581,0.32487008,118040.0,118030.0,0.64220635]
[1753303950812,0.33334128,118040.0,118030.0,0.64220635]
[1753303951041,0.32487008,118040.0,118030.0,0.64220635]
[1753303951709,0.33334128,118040.0,118030.0,0.64220635]
[1753303951933,0.31639895,118040.0,118030.0,0.64220635]
[1753303952150,0.32487008,118040.0,118030.0,0.64220635]
[1753303952619,0.31639895,118040.0,118030.0,0.64220635]
[1753303952842,0.31639895,118040.0,118030.0,0.72874365]
[1753303954832,0.32487,118040.0,118030.0,0.64426635]
[1753303955056,0.31639895,118040.0,118030.0,0.64220635]
[1753303957036,0.31639895,118040.0,118030.0,0.64427635]
[1753303958004,0.31059895,118040.0,118030.0,0.67497635]
[1753303958268,0.15198993,118040.0,118030.0,0.84833635]
[1753303958501,0.15198993,118040.0,118030.0,1.45836056]
[1753303958986,0.15198993,118040.0,118030.0,1.01949095]
[1753303959240,0.15098993,118040.0,118030.0,1.01949095]
[1753303959708,0.01098993,118040.0,118030.0,1.45836056]
[1753303959929,0.00798993,118040.0,118030.0,1.45836056]
[1753303960825,0.00798993,118040.0,118030.0,0.93701365]
[1753303961506,0.00798993,118040.0,118030.0,0.93473365]
[1753303962439,0.40798993,118040.0,118030.0,1.37580326]
[1753303962674,0.00798993,118040.0,118030.0,1.37580326]
[1753303962922,0.02538978,118060.0,118050.0,0.23091973]
[1753303963161,0.02543901,118060.0,118050.0,0.85382184]
[1753303963403,0.02543901,118060.0,118050.0,0.87923392]
[1753303963910,0.00798999,118060.0,118050.0,0.96591122]
[1753303964435,0.00998999,118060.0,118050.0,0.96591122]
[1753303964674,0.01098999,118060.0,118050.0,0.96591122]
[1753303964925,0.00304923,118060.0,118050.0,0.96591122]
[1753303965173,0.00794076,118070.0,118060.0,0.19481531]
[1753303965453,0.00843316,118070.0,118060.0,1.01210952]
[1753303965673,0.0004924,118070.0,118060.0,1.47662496]
[1753303965919,0.28914076,118090.0,118080.0,0.19478232]
[1753303966168,0.30658978,118090.0,118080.0,1.10739154]
[1753303966413,0.30658978,118090.0,118080.0,1.19186884]
[1753303966652,0.28914076,118090.0,118080.0,0.72019923]
[1753303966891,0.29421076,118090.0,118080.0,0.63365193]
[1753303967128,0.37685978,118090.0,118080.0,0.63365193]
[1753303967366,0.37685978,118090.0,118080.0,0.19478232]
[1753303967600,0.37985978,118090.0,118080.0,0.19478232]
[1753303968359,0.3913176,118090.0,118080.0,0.62299744]
[1753303968622,0.39978514,118090.0,118080.0,0.19478232]
[1753303968859,0.3913176,118090.0,118080.0,0.19478232]
[1753303969111,0.38285978,118090.0,118080.0,0.19478232]
[1753303969363,0.31765978,118090.0,118080.0,0.21911158]
[1753303969587,0.31258978,118090.0,118080.0,0.6493967]
[1753303969815,0.31258978,118090.0,118080.0,0.6799967]
[1753303970062,0.31258978,118090.0,118080.0,0.6493967]
[1753303970279,0.30958978,118090.0,118080.0,0.6493967]
[1753303970498,0.31465978,118090.0,118080.0,0.6493967]
[1753303970736,0.31465978,118090.0,118080.0,0.19685232]
[1753303970965,0.32030364,118090.0,118080.0,0.62506744]
[1753303971407,0.32130364,118090.0,118080.0,0.62506744]
[1753303971628,0.31265978,118090.0,118080.0,0.62506744]
[1753303971859,0.30758978,118090.0,118080.0,0.62506744]
[1753303972297,0.30758978,118090.0,118080.0,0.65576744]
[1753303972754,0.15864902,118090.0,118080.0,0.77284474]
[1753303972984,0.14914076,118090.0,118080.0,0.85952204]
[1753303973426,0.14914076,118090.0,118080.0,0.85732204]
[1753303974810,0.14914076,118090.0,118080.0,0.77284474]
[1753303978395,0.16658978,118090.0,118080.0,0.77284474]
[1753303979705,0.16658978,118090.0,118080.0,0.91356474]
[1753303980346,0.16658978,118090.0,118080.0,0.70954474]
[1753303980581,0.16857978,118090.0,118080.0,0.70954474]
[1753303980800,0.17165978,118090.0,118080.0,0.70954474]
[1753303981281,0.43022539,118090.0,118080.0,0.18631399]
[1753303981504,0.26086304,118090.0,118080.0,0.20325072]
[1753303981742,0.24392732,118090.0,118080.0,0.20325072]
[1753303981954,0.37609978,118090.0,118080.0,0.63146584]
[1753303982406,0.36815902,118090.0,118080.0,0.67955518]
[1753303982619,0.30722978,118090.0,118080.0,0.68162518]
[1753303982835,0.30722978,118090.0,118080.0,0.82950248]
[1753303983288,0.30718978,118090.0,118080.0,0.83170248]
[1753303983511,0.28974076,118090.0,118080.0,0.83170248]
[1753303983961,0.28974076,118090.0,118080.0,0.78141314]
[1753303986039,0.28974076,118090.0,118080.0,0.78361314]
[1753303986040,0.28970076,118090.0,118080.0,0.78361314]
[1753303987019,0.28870076,118090.0,118080.0,0.78361314]
[1753303987239,0.28870076,118090.0,118080.0,0.35539802]
[1753303987240,0.14970076,118090.0,118080.0,0.35539802]
[1753303987459,0.21824076,118090.0,118080.0,0.28772802]
[1753303987690,0.09512978,118090.0,118080.0,0.28772802]
[1753303987918,0.16710978,118090.0,118080.0,0.78077314]
[1753303988182,0.16710978,118090.0,118080.0,0.35255802]
[1753303988410,0.16710978,118090.0,118080.0,0.78077314]
[1753303989407,0.16710978,118090.0,118080.0,1.22929384]
[1753303989641,0.17234978,118090.0,118080.0,0.72812593]
[1753303990069,0.57234978,118090.0,118080.0,0.72812593]
[1753303991442,0.57234978,118090.0,118080.0,1.16649384]
[1753303992153,0.57234978,118090.0,118080.0,1.25097114]
[1753303992587,0.57234978,118090.0,118080.0,0.72812593]
[1753303992805,0.57234978,118090.0,118080.0,0.72609593]
[1753303995511,0.57234978,118090.0,118080.0,1.16446384]
[1753303995735,0.57234978,118090.0,118080.0,1.16649384]
[1753303996396,0.57218978,118090.0,118080.0,1.16649384]
[1753303997018,0.57218978,118090.0,118080.0,1.23010244]
[1753303997243,0.57218978,118090.0,118080.0,1.16649384]
[1753304001012,0.57206978,118090.0,118080.0,1.16649384]
[1753304003780,0.56682978,118090.0,118080.0,1.16649384]
[1753304003999,0.00914076,118090.0,118080.0,1.37275384]
[1753304004211,0.0088262,118110.0,118090.0,0.21082996]
[1753304004422,0.14913386,118110.0,118100.0,0.63514724]
[1753304004639,0.55707462,118110.0,118100.0,0.63514724]
[1753304004851,0.57452364,118110.0,118100.0,0.66814724]
[1753304005066,0.57452364,118110.0,118100.0,0.75262454]
[1753304005500,0.57552364,118110.0,118100.0,0.75262454]
[1753304005727,0.57652364,118110.0,118100.0,0.71962454]
[1753304005984,0.58176364,118110.0,118100.0,0.19677933]
[1753304006189,0.61236364,118110.0,118100.0,0.63311724]
[1753304006636,0.64466364,118110.0,118100.0,0.63311724]
[1753304007060,0.61406364,118110.0,118100.0,0.63311724]
[1753304007339,0.65312982,118110.0,118100.0,0.19474933]
[1753304007542,0.65312982,118110.0,118100.0,0.63311724]
[1753304007758,0.66159614,118110.0,118100.0,0.63311724]
[1753304008178,0.65312982,118110.0,118100.0,0.63311724]
[1753304008600,0.66159614,118110.0,118100.0,0.63311724]
[1753304008808,0.67006253,118110.0,118100.0,0.63311724]
[1753304009054,0.65312982,118110.0,118100.0,0.63311724]
[1753304009263,0.66159614,118110.0,118100.0,0.63311724]
[1753304009686,0.65312982,118110.0,118100.0,0.63311724]
[1753304010356,0.66159614,118110.0,118100.0,0.63311724]
[1753304011238,0.84786303,118110.0,118100.0,0.63311753]
[1753304011472,0.44786303,118110.0,118100.0,0.19474976]
[1753304011706,0.43939635,118110.0,118100.0,0.19474976]